[Event "Live Chess"]
[Site "Chess.com"]
[Date "2023.05.20"]
[Round "-"]
[White "JoeRoot66"]
[Black "GMHarry-youtube"]
[Result "1-0"]
[WhiteElo "1921"]
[BlackElo "2019"]
[TimeControl "300"]
[EndTime "15:19:36 PDT"]
[Termination "JoeRoot66 won by resignation"]

1. e4 {[%clk 0:04:58.9]} 1... c5 {[%clk 0:04:59]} 2. c3 {[%clk 0:04:58.1]} 2...
d5 {[%clk 0:04:57.3]} 3. exd5 {[%clk 0:04:58]} 3... Qxd5 {[%clk 0:04:57.1]} 4.
d4 {[%clk 0:04:57.1]} 4... g6 {[%clk 0:04:56.1]} 5. Nf3 {[%clk 0:04:56.3]} 5...
Bg7 {[%clk 0:04:54.5]} 6. Na3 {[%clk 0:04:54.8]} 6... Nc6 {[%clk 0:04:52.7]} 7.
Be3 {[%clk 0:04:52]} 7... cxd4 {[%clk 0:04:51.1]} 8. Nb5 {[%clk 0:04:50.7]} 8...
Qd8 {[%clk 0:04:45.7]} 9. Nbxd4 {[%clk 0:04:44.2]} 9... Nxd4 {[%clk 0:04:44.9]}
10. Bxd4 {[%clk 0:04:43]} 10... Nf6 {[%clk 0:04:42.4]} 11. Bb5+ {[%clk
0:04:33.7]} 11... Bd7 {[%clk 0:04:40.2]} 12. Bxf6 {[%clk 0:04:29.9]} 12... Bxf6
{[%clk 0:04:38.3]} 13. Bxd7+ {[%clk 0:04:22.4]} 13... Qxd7 {[%clk 0:04:36.7]}
14. Qxd7+ {[%clk 0:04:22.3]} 14... Kxd7 {[%clk 0:04:36.6]} 15. O-O-O+ {[%clk
0:04:18.1]} 15... Kc7 {[%clk 0:04:35.4]} 16. Nd4 {[%clk 0:04:16.6]} 16... e6
{[%clk 0:04:31]} 17. Rhe1 {[%clk 0:04:13.3]} 17... Bxd4 {[%clk 0:04:29.8]} 18.
Rxd4 {[%clk 0:04:11.4]} 18... Rhd8 {[%clk 0:04:29.7]} 19. Red1 {[%clk
0:04:10.9]} 19... Rxd4 {[%clk 0:04:28.3]} 20. Rxd4 {[%clk 0:04:10.8]} 20... Rd8
{[%clk 0:04:27.9]} 21. Rxd8 {[%clk 0:04:08.7]} 21... Kxd8 {[%clk 0:04:27.8]} 22.
Kd2 {[%clk 0:04:08.6]} 22... Kd7 {[%clk 0:04:27.7]} 23. Ke3 {[%clk 0:04:07.2]}
23... Kd6 {[%clk 0:04:27.6]} 24. Ke4 {[%clk 0:04:07]} 24... f5+ {[%clk
0:04:26.3]} 25. Kd4 {[%clk 0:04:06.2]} 25... e5+ {[%clk 0:04:25.8]} 26. Kc4
{[%clk 0:04:05.8]} 26... Kc6 {[%clk 0:04:25.1]} 27. a4 {[%clk 0:04:04.9]} 27...
a6 {[%clk 0:04:23.9]} 28. a5 {[%clk 0:04:04.1]} 28... Kd6 {[%clk 0:04:19.9]} 29.
b4 {[%clk 0:04:00.5]} 29... Kc6 {[%clk 0:04:19.1]} 30. f3 {[%clk 0:03:59.8]}
30... h6 {[%clk 0:04:18]} 31. h3 {[%clk 0:03:58.9]} 31... g5 {[%clk 0:04:15.4]}
32. g4 {[%clk 0:03:57.3]} 32... f4 {[%clk 0:04:07.8]} 33. Kd3 {[%clk 0:03:54]}
33... Kb5 {[%clk 0:03:54.7]} 34. Ke4 {[%clk 0:03:51.6]} 34... Kc4 {[%clk
0:03:53.6]} 35. Kxe5 {[%clk 0:03:45.8]} 35... Kd3 {[%clk 0:03:48.6]} 36. Kd5
{[%clk 0:03:33.7]} 36... Ke3 {[%clk 0:03:47.7]} 37. c4 {[%clk 0:03:31.3]} 37...
Kxf3 {[%clk 0:03:47.1]} 38. b5 {[%clk 0:03:30.9]} 38... Ke3 {[%clk 0:03:46.5]}
39. bxa6 {[%clk 0:03:30.4]} 39... bxa6 {[%clk 0:03:44.8]} 40. c5 {[%clk
0:03:29.8]} 40... f3 {[%clk 0:03:44.5]} 41. c6 {[%clk 0:03:29.3]} 41... f2
{[%clk 0:03:44.4]} 42. c7 {[%clk 0:03:29]} 42... f1=Q {[%clk 0:03:44.3]} 43.
c8=Q {[%clk 0:03:28.4]} 43... Qb5+ {[%clk 0:03:42.8]} 44. Qc5+ {[%clk
0:03:26.5]} 44... Qxc5+ {[%clk 0:03:20.3]} 45. Kxc5 {[%clk 0:03:26.4]} 45... Ke4
{[%clk 0:03:11.3]} 46. Kb6 {[%clk 0:03:24.3]} 46... Kd5 {[%clk 0:03:09.2]} 47.
Kxa6 {[%clk 0:03:13.8]} 47... Kc6 {[%clk 0:03:08.3]} 48. Ka7 {[%clk 0:03:12.4]}
48... Kc7 {[%clk 0:03:05.8]} 49. Ka8 {[%clk 0:03:11.5]} 49... Kc6 {[%clk
0:02:52.8]} 50. Kb8 {[%clk 0:03:05.4]} 50... Kb5 {[%clk 0:02:51.2]} 51. Kc7
{[%clk 0:03:04.6]} 51... Kxa5 {[%clk 0:02:50.1]} 52. Kd6 {[%clk 0:03:04.5]}
52... Kb5 {[%clk 0:02:47.6]} 53. Ke6 {[%clk 0:03:04.4]} 53... Kc5 {[%clk
0:02:47.2]} 54. Kf6 {[%clk 0:03:04.3]} 54... h5 {[%clk 0:02:46.8]} 55. gxh5
{[%clk 0:03:03.2]} 55... Kd5 {[%clk 0:02:46.2]} 56. Kxg5 {[%clk 0:03:01.7]}
56... Ke6 {[%clk 0:02:45.7]} 57. Kg6 {[%clk 0:03:01.6]} 57... Ke7 {[%clk
0:02:44.6]} 58. Kg7 {[%clk 0:03:01.5]} 58... Ke6 {[%clk 0:02:43.7]} 59. h6
{[%clk 0:03:01.4]} 59... Kf5 {[%clk 0:02:43.6]} 60. h7 {[%clk 0:03:00.7]} 60...
Kg5 {[%clk 0:02:43.5]} 61. h8=Q {[%clk 0:03:00.3]} 1-0

[Event "Live Chess"]
[Site "Chess.com"]
[Date "2023.05.20"]
[Round "-"]
[White "Daniel_Gliddon_FA"]
[Black "AlanPaling"]
[Result "0-1"]
[WhiteElo "1270"]
[BlackElo "1227"]
[TimeControl "300"]
[EndTime "15:19:38 PDT"]
[Termination "AlanPaling won by resignation"]

1. e4 {[%clk 0:04:57.1]} 1... Nf6 {[%clk 0:04:57.9]} 2. e5 {[%clk 0:04:46.5]}
2... Nd5 {[%clk 0:04:55.3]} 3. c4 {[%clk 0:04:45.2]} 3... Nb6 {[%clk 0:04:53.4]}
4. d4 {[%clk 0:04:43.4]} 4... d6 {[%clk 0:04:52.7]} 5. Nc3 {[%clk 0:04:39.7]}
5... dxe5 {[%clk 0:04:51.1]} 6. dxe5 {[%clk 0:04:36.3]} 6... Qxd1+ {[%clk
0:04:50.4]} 7. Nxd1 {[%clk 0:04:34.1]} 7... Bf5 {[%clk 0:04:45]} 8. Be3 {[%clk
0:04:30.7]} 8... e6 {[%clk 0:04:42]} 9. Nc3 {[%clk 0:04:25]} 9... Bb4 {[%clk
0:04:35.4]} 10. Rc1 {[%clk 0:04:12.2]} 10... O-O {[%clk 0:04:31.3]} 11. c5
{[%clk 0:04:06.8]} 11... Bxc3+ {[%clk 0:04:22.9]} 12. Rxc3 {[%clk 0:03:57.7]}
12... Nd5 {[%clk 0:04:22.2]} 13. Rc1 {[%clk 0:03:54.4]} 13... Nc6 {[%clk
0:04:17.6]} 14. Bc4 {[%clk 0:03:49.4]} 14... Nxe3 {[%clk 0:04:11.8]} 15. fxe3
{[%clk 0:03:48.2]} 15... Nxe5 {[%clk 0:04:11.2]} 16. Bb3 {[%clk 0:03:43.5]}
16... c6 {[%clk 0:04:08.6]} 17. Nf3 {[%clk 0:03:40.5]} 17... Nd3+ {[%clk
0:04:03.1]} 18. Kd2 {[%clk 0:03:32.6]} 18... Nxc1 {[%clk 0:04:01.9]} 19. Rxc1
{[%clk 0:03:27.4]} 19... Rad8+ {[%clk 0:04:00.5]} 20. Ke2 {[%clk 0:03:24.1]}
20... Bg4 {[%clk 0:03:58.2]} 21. Kf2 {[%clk 0:03:22.4]} 21... Bxf3 {[%clk
0:03:56.6]} 22. gxf3 {[%clk 0:03:20]} 22... Rd7 {[%clk 0:03:56.1]} 23. Rg1
{[%clk 0:03:10.1]} 23... Rd2+ {[%clk 0:03:52.4]} 24. Ke1 {[%clk 0:03:07.4]}
24... Rfd8 {[%clk 0:03:50]} 25. h4 {[%clk 0:03:00.3]} 25... Rxb2 {[%clk
0:03:47]} 26. h5 {[%clk 0:02:58]} 26... Rb1+ {[%clk 0:03:45.1]} 27. Kf2 {[%clk
0:02:53.3]} 27... Rd2+ {[%clk 0:03:41.1]} 0-1

[Event "Live Chess"]
[Site "Chess.com"]
[Date "2023.05.20"]
[Round "-"]
[White "ShanthamGrarks"]
[Black "LodeshChess"]
[Result "1-0"]
[WhiteElo "1921"]
[BlackElo "1094"]
[TimeControl "300"]
[EndTime "15:19:43 PDT"]
[Termination "ShanthamGrarks won by resignation"]

1. d4 {[%clk 0:04:58.7]} 1... Nf6 {[%clk 0:04:58.6]} 2. Nc3 {[%clk 0:04:57]}
2... d5 {[%clk 0:04:55.8]} 3. e4 {[%clk 0:04:56.3]} 3... dxe4 {[%clk 0:04:52.4]}
4. f3 {[%clk 0:04:55.1]} 4... exf3 {[%clk 0:04:50.8]} 5. Nxf3 {[%clk 0:04:54.2]}
5... Bg4 {[%clk 0:04:48.5]} 6. Bc4 {[%clk 0:04:50.3]} 6... e6 {[%clk 0:04:46.5]}
7. Bg5 {[%clk 0:04:47.2]} 7... Bb4 {[%clk 0:04:41.3]} 8. O-O {[%clk 0:04:45.2]}
8... h6 {[%clk 0:04:25.1]} 9. Be3 {[%clk 0:04:42.9]} 9... Bxc3 {[%clk 0:04:13]}
10. bxc3 {[%clk 0:04:41.3]} 10... O-O {[%clk 0:04:12.5]} 11. Kh1 {[%clk
0:04:39.6]} 11... b6 {[%clk 0:04:06]} 12. Qd2 {[%clk 0:04:38.2]} 12... c6 {[%clk
0:04:03.5]} 13. Bd3 {[%clk 0:04:35.4]} 13... Nd5 {[%clk 0:03:28.9]} 14. Bxh6
{[%clk 0:04:30.9]} 14... Bxf3 {[%clk 0:03:14.8]} 15. Rxf3 {[%clk 0:04:25]} 15...
Qh4 {[%clk 0:02:45.4]} 16. Bg5 {[%clk 0:04:14.5]} 16... Qh8 {[%clk 0:02:22.3]}
17. Rh3 {[%clk 0:04:11.3]} 1-0

[Event "Live Chess"]
[Site "Chess.com"]
[Date "2023.05.20"]
[Round "-"]
[White "BJAW87"]
[Black "Conradical12"]
[Result "0-1"]
[WhiteElo "1426"]
[BlackElo "1605"]
[TimeControl "300"]
[EndTime "15:19:45 PDT"]
[Termination "Conradical12 won by resignation"]

1. e4 {[%clk 0:04:59.2]} 1... e5 {[%clk 0:04:57.7]} 2. Nc3 {[%clk 0:04:58.8]}
2... Nc6 {[%clk 0:04:57.2]} 3. f4 {[%clk 0:04:58.1]} 3... Bc5 {[%clk 0:04:53.2]}
4. fxe5 {[%clk 0:04:57.2]} 4... Nxe5 {[%clk 0:04:51.6]} 5. d4 {[%clk 0:04:55.6]}
5... Bb4 {[%clk 0:04:46.1]} 6. dxe5 {[%clk 0:04:54.3]} 6... Qh4+ {[%clk
0:04:45.5]} 7. Ke2 {[%clk 0:04:43.7]} 7... b6 {[%clk 0:04:33.7]} 8. Nf3 {[%clk
0:04:37.7]} 8... Ba6+ {[%clk 0:04:29.4]} 9. Kd2 {[%clk 0:04:12.2]} 9... Qf2+
{[%clk 0:04:23.9]} 10. Be2 {[%clk 0:04:01.7]} 10... Bc5 {[%clk 0:04:21.5]} 11.
Nd5 {[%clk 0:03:33.1]} 11... O-O-O {[%clk 0:04:04.8]} 12. b4 {[%clk 0:03:22.8]}
12... Bd4 {[%clk 0:04:01.1]} 13. Nxd4 {[%clk 0:03:19.3]} 13... Qxd4+ {[%clk
0:03:58.6]} 14. Bd3 {[%clk 0:03:05.6]} 14... Bxd3 {[%clk 0:03:55.5]} 15. cxd3
{[%clk 0:03:02.8]} 15... Qxa1 {[%clk 0:03:54.6]} 16. Qg4 {[%clk 0:03:01.5]}
16... Qxa2+ {[%clk 0:03:47.6]} 17. Ke3 {[%clk 0:03:00.9]} 17... c6 {[%clk
0:03:40.9]} 18. Qxg7 {[%clk 0:02:58]} 18... cxd5 {[%clk 0:03:21.6]} 19. Qxh8
{[%clk 0:02:56.8]} 19... Nh6 {[%clk 0:03:20.4]} 20. Qxh7 {[%clk 0:02:49.1]}
20... Ng4+ {[%clk 0:03:16.7]} 21. Kf3 {[%clk 0:02:45.2]} 21... Qf2+ {[%clk
0:03:13.3]} 22. Kxg4 {[%clk 0:02:44.6]} 22... Qxg2+ {[%clk 0:03:12.4]} 23. Kh4
{[%clk 0:02:32.1]} 23... Qxh1 {[%clk 0:03:11.3]} 24. Bg5 {[%clk 0:02:29.7]}
24... Qxh2+ {[%clk 0:03:09.1]} 25. Kg4 {[%clk 0:02:27.8]} 25... Qxh7 {[%clk
0:03:07.6]} 0-1

[Event "Live Chess"]
[Site "Chess.com"]
[Date "2023.05.20"]
[Round "-"]
[White "Jo1ts"]
[Black "Geomorph"]
[Result "1/2-1/2"]
[WhiteElo "772"]
[BlackElo "1238"]
[TimeControl "300"]
[EndTime "15:19:48 PDT"]
[Termination "Game drawn - insufficient material"]

1. d4 {[%clk 0:04:56.4]} 1... d5 {[%clk 0:04:58.9]} 2. Bf4 {[%clk 0:04:55.7]}
2... Nf6 {[%clk 0:04:56.9]} 3. Nf3 {[%clk 0:04:54.5]} 3... c5 {[%clk 0:04:54.6]}
4. c3 {[%clk 0:04:51.9]} 4... Qb6 {[%clk 0:04:53.4]} 5. Qb3 {[%clk 0:04:45.5]}
5... cxd4 {[%clk 0:04:51.9]} 6. Qxb6 {[%clk 0:04:41.6]} 6... axb6 {[%clk
0:04:50.6]} 7. cxd4 {[%clk 0:04:40.3]} 7... Nbd7 {[%clk 0:04:47.8]} 8. e3 {[%clk
0:04:36.9]} 8... e6 {[%clk 0:04:46.9]} 9. Bb5 {[%clk 0:04:32.5]} 9... Ng4 {[%clk
0:04:42.7]} 10. O-O {[%clk 0:04:25.5]} 10... Be7 {[%clk 0:04:38.9]} 11. h3
{[%clk 0:04:18.9]} 11... Nf6 {[%clk 0:04:37.1]} 12. Ne5 {[%clk 0:04:16.3]} 12...
O-O {[%clk 0:04:36.1]} 13. Bg5 {[%clk 0:04:09.6]} 13... Nxe5 {[%clk 0:04:30.9]}
14. dxe5 {[%clk 0:04:05]} 14... Ne4 {[%clk 0:04:29.8]} 15. Bxe7 {[%clk
0:04:01.7]} 15... Ra5 {[%clk 0:04:21.2]} 16. Bxf8 {[%clk 0:03:58.3]} 16... Rxb5
{[%clk 0:04:17.3]} 17. Ba3 {[%clk 0:03:51.8]} 17... f6 {[%clk 0:04:12.4]} 18.
exf6 {[%clk 0:03:47.8]} 18... gxf6 {[%clk 0:04:08.2]} 19. Rc1 {[%clk 0:03:42.9]}
19... Nc5 {[%clk 0:03:57.2]} 20. Bxc5 {[%clk 0:03:38.3]} 20... bxc5 {[%clk
0:03:57.1]} 21. Na3 {[%clk 0:03:33.7]} 21... Rxb2 {[%clk 0:03:53.4]} 22. Rxc5
{[%clk 0:03:30.5]} 22... Bd7 {[%clk 0:03:49.1]} 23. Rc7 {[%clk 0:03:29.2]} 23...
Bc6 {[%clk 0:03:46.6]} 24. Re7 {[%clk 0:03:17.9]} 24... e5 {[%clk 0:03:41.5]}
25. Nb1 {[%clk 0:02:48.3]} 25... Rc2 {[%clk 0:03:16.9]} 26. a3 {[%clk
0:02:34.7]} 26... Rc1+ {[%clk 0:03:10.1]} 27. Kh2 {[%clk 0:02:30.9]} 27... d4
{[%clk 0:03:06]} 28. exd4 {[%clk 0:02:27.3]} 28... exd4 {[%clk 0:03:04.5]} 29.
Re4 {[%clk 0:02:22.1]} 29... d3 {[%clk 0:03:00.5]} 30. Rd4 {[%clk 0:02:16.5]}
30... Be4 {[%clk 0:02:55.8]} 31. a4 {[%clk 0:02:10.4]} 31... f5 {[%clk
0:02:49.8]} 32. Kg3 {[%clk 0:02:09.4]} 32... d2 {[%clk 0:02:33]} 33. Nxd2 {[%clk
0:02:04.9]} 33... Rxa1 {[%clk 0:02:30.5]} 34. Nxe4 {[%clk 0:02:03.7]} 34... fxe4
{[%clk 0:02:29.8]} 35. Rxe4 {[%clk 0:02:03.1]} 35... Kf7 {[%clk 0:02:27.3]} 36.
Rb4 {[%clk 0:02:00.9]} 36... b6 {[%clk 0:02:23.5]} 37. Rxb6 {[%clk 0:01:57.9]}
37... Rxa4 {[%clk 0:02:23]} 38. Rb7+ {[%clk 0:01:56.3]} 38... Kg6 {[%clk
0:02:21.6]} 39. f4 {[%clk 0:01:48.8]} 39... h5 {[%clk 0:02:17.2]} 40. Kf3 {[%clk
0:01:42.3]} 40... Ra5 {[%clk 0:02:08.1]} 41. g4 {[%clk 0:01:39.1]} 41... h4
{[%clk 0:02:00.4]} 42. f5+ {[%clk 0:01:35.6]} 42... Kf6 {[%clk 0:01:55.4]} 43.
Rh7 {[%clk 0:01:27.4]} 43... Ra3+ {[%clk 0:01:52]} 44. Ke2 {[%clk 0:01:24.4]}
44... Rxh3 {[%clk 0:01:49.3]} 45. Kf2 {[%clk 0:01:18.8]} 45... Kg5 {[%clk
0:01:46.5]} 46. Kg2 {[%clk 0:01:15.8]} 46... Rg3+ {[%clk 0:01:45.5]} 47. Kh2
{[%clk 0:01:14.2]} 47... Kxg4 {[%clk 0:01:44.2]} 48. f6 {[%clk 0:01:10.5]} 48...
Rf3 {[%clk 0:01:33.2]} 49. Rh6 {[%clk 0:01:01.8]} 49... Kg5 {[%clk 0:01:27.2]}
50. Rh7 {[%clk 0:00:58.1]} 50... Rxf6 {[%clk 0:01:24.4]} 51. Kh3 {[%clk
0:00:55.2]} 51... Rf3+ {[%clk 0:01:19.9]} 52. Kg2 {[%clk 0:00:53.5]} 52... Rg3+
{[%clk 0:01:17.3]} 53. Kh2 {[%clk 0:00:52.3]} 53... Kg4 {[%clk 0:01:12.3]} 54.
Kh1 {[%clk 0:00:50.4]} 54... Kf3 {[%clk 0:01:11.1]} 55. Kh2 {[%clk 0:00:46.2]}
55... Rg4 {[%clk 0:01:01.7]} 56. Kh3 {[%clk 0:00:43.9]} 56... Kf4 {[%clk
0:01:00.3]} 57. Rxh4 {[%clk 0:00:41.7]} 57... Rxh4+ {[%clk 0:00:56.5]} 58. Kxh4
{[%clk 0:00:41.6]} 1/2-1/2

[Event "Live Chess"]
[Site "Chess.com"]
[Date "2023.05.20"]
[Round "-"]
[White "Doge_Dandolo"]
[Black "Nazar_777"]
[Result "0-1"]
[WhiteElo "2029"]
[BlackElo "1641"]
[TimeControl "300"]
[EndTime "15:19:49 PDT"]
[Termination "Nazar_777 won by resignation"]

1. Nf3 {[%clk 0:04:57.5]} 1... e6 {[%clk 0:04:53.2]} 2. c4 {[%clk 0:04:54.5]}
2... a6 {[%clk 0:04:52.7]} 3. g3 {[%clk 0:04:51.1]} 3... h5 {[%clk 0:04:50.6]}
4. Bg2 {[%clk 0:04:49]} 4... Nf6 {[%clk 0:04:49.6]} 5. d4 {[%clk 0:04:47.6]}
5... Be7 {[%clk 0:04:48.5]} 6. Nc3 {[%clk 0:04:46.6]} 6... c5 {[%clk 0:04:47.6]}
7. Bg5 {[%clk 0:04:44.3]} 7... Qc7 {[%clk 0:04:46.4]} 8. O-O {[%clk 0:04:41.8]}
8... Ng4 {[%clk 0:04:44.6]} 9. Bxe7 {[%clk 0:04:39.5]} 9... Kxe7 {[%clk
0:04:43.6]} 10. d5 {[%clk 0:04:37.5]} 10... Ke8 {[%clk 0:04:41.2]} 11. dxe6
{[%clk 0:04:36.1]} 11... dxe6 {[%clk 0:04:39.9]} 12. Qd3 {[%clk 0:04:25.2]}
12... h4 {[%clk 0:04:37.9]} 13. Rad1 {[%clk 0:04:22.1]} 13... Nc6 {[%clk
0:04:35.3]} 14. Ne4 {[%clk 0:04:19.8]} 14... hxg3 {[%clk 0:04:32.3]} 15. fxg3
{[%clk 0:04:18.2]} 15... Nce5 {[%clk 0:04:23.9]} 16. Nxe5 {[%clk 0:04:16]} 16...
Nxe5 {[%clk 0:04:22]} 17. Qd6 {[%clk 0:04:04.8]} 17... Qxd6 {[%clk 0:04:20]} 18.
Nxd6+ {[%clk 0:04:03.7]} 18... Ke7 {[%clk 0:04:18.2]} 19. b3 {[%clk 0:03:57]}
19... Rf8 {[%clk 0:04:16.7]} 20. Ne4 {[%clk 0:03:51.3]} 20... Ng4 {[%clk
0:04:15.2]} 21. Nxc5 {[%clk 0:03:48]} 21... Ne3 {[%clk 0:04:11.9]} 22. Kf2
{[%clk 0:03:46.2]} 22... Nxf1 {[%clk 0:04:08.8]} 23. Kxf1 {[%clk 0:03:45.5]}
23... Rb8 {[%clk 0:04:04.9]} 24. a4 {[%clk 0:03:42.3]} 24... b6 {[%clk
0:04:03.4]} 25. Ne4 {[%clk 0:03:40]} 25... Rd8 {[%clk 0:04:02.2]} 26. Rxd8
{[%clk 0:03:35.9]} 26... Kxd8 {[%clk 0:04:00.1]} 27. Nd6 {[%clk 0:03:35]} 27...
Ke7 {[%clk 0:03:56.8]} 28. Ne4 {[%clk 0:03:30.9]} 28... Bb7 {[%clk 0:03:54.1]}
29. Kf2 {[%clk 0:03:29.1]} 29... Bxe4 {[%clk 0:03:52.5]} 30. Bxe4 {[%clk
0:03:27.3]} 30... f5 {[%clk 0:03:51.7]} 31. Bf3 {[%clk 0:03:24.8]} 31... g5
{[%clk 0:03:50.1]} 32. h4 {[%clk 0:03:23]} 32... g4 {[%clk 0:03:48.8]} 33. Bg2
{[%clk 0:03:20.5]} 33... b5 {[%clk 0:03:47.8]} 34. axb5 {[%clk 0:03:18.4]} 34...
axb5 {[%clk 0:03:46.7]} 35. c5 {[%clk 0:03:17.6]} 35... e5 {[%clk 0:03:41.2]}
36. Ke3 {[%clk 0:03:13.6]} 36... Ke6 {[%clk 0:03:38.7]} 37. Kd3 {[%clk
0:03:11.1]} 37... e4+ {[%clk 0:03:36.2]} 38. Ke3 {[%clk 0:03:08.6]} 38... Kd5
{[%clk 0:03:32.7]} 39. Kf4 {[%clk 0:03:05.2]} 39... Rf8 {[%clk 0:03:28.6]} 40.
b4 {[%clk 0:03:02.5]} 40... Kc4 {[%clk 0:03:25.8]} 41. c6 {[%clk 0:03:00.6]}
41... Kxb4 {[%clk 0:03:24.4]} 42. Ke5 {[%clk 0:02:59.7]} 42... Kc5 {[%clk
0:03:20.8]} 43. c7 {[%clk 0:02:58.8]} 43... Kc6 {[%clk 0:03:18.4]} 44. e3 {[%clk
0:02:57.4]} 44... Kxc7 {[%clk 0:03:16.2]} 45. Bf1 {[%clk 0:02:56.9]} 45... Kc6
{[%clk 0:03:14.7]} 46. Ke6 {[%clk 0:02:55.1]} 46... Kc5 {[%clk 0:03:13.1]} 47.
Be2 {[%clk 0:02:53.6]} 47... b4 {[%clk 0:03:11.4]} 48. h5 {[%clk 0:02:53.2]}
48... b3 {[%clk 0:03:09.6]} 49. h6 {[%clk 0:02:52.6]} 49... Kb4 {[%clk
0:03:07.6]} 50. Bd1 {[%clk 0:02:52]} 50... Kc3 {[%clk 0:03:06]} 51. Bxb3 {[%clk
0:02:49.9]} 51... Kxb3 {[%clk 0:03:04.9]} 52. Ke7 {[%clk 0:02:46.5]} 52... Rh8
{[%clk 0:03:03]} 53. Kf6 {[%clk 0:02:45.3]} 53... Rxh6+ {[%clk 0:03:01.8]} 54.
Kxf5 {[%clk 0:02:44.9]} 54... Kc3 {[%clk 0:02:59.3]} 55. Kxe4 {[%clk 0:02:43.7]}
55... Rf6 {[%clk 0:02:53.8]} 56. Kd5 {[%clk 0:02:40.3]} 56... Kd2 {[%clk
0:02:52.3]} 57. e4 {[%clk 0:02:39.7]} 57... Rf3 {[%clk 0:02:50.5]} 58. e5 {[%clk
0:02:39]} 58... Rxg3 {[%clk 0:02:49.7]} 59. e6 {[%clk 0:02:38.6]} 59... Re3
{[%clk 0:02:48.7]} 60. e7 {[%clk 0:02:38.1]} 60... g3 {[%clk 0:02:47.8]} 61.
e8=Q {[%clk 0:02:36.8]} 61... Rxe8 {[%clk 0:02:46.5]} 0-1

[Event "Live Chess"]
[Site "Chess.com"]
[Date "2023.05.20"]
[Round "-"]
[White "stevochess11"]
[Black "CeladonFish"]
[Result "1-0"]
[WhiteElo "1756"]
[BlackElo "1167"]
[TimeControl "300"]
[EndTime "15:19:57 PDT"]
[Termination "stevochess11 won by resignation"]

1. d4 {[%clk 0:04:56.2]} 1... Nf6 {[%clk 0:04:58]} 2. Nf3 {[%clk 0:04:55.2]}
2... g6 {[%clk 0:04:57.6]} 3. Nc3 {[%clk 0:04:53.9]} 3... Bg7 {[%clk 0:04:57.2]}
4. e4 {[%clk 0:04:53]} 4... O-O {[%clk 0:04:56.9]} 5. Be3 {[%clk 0:04:51.1]}
5... c6 {[%clk 0:04:53.3]} 6. Bd3 {[%clk 0:04:47.5]} 6... d5 {[%clk 0:04:52.4]}
7. e5 {[%clk 0:04:46.4]} 7... Nh5 {[%clk 0:04:49.5]} 8. Qd2 {[%clk 0:04:42.8]}
8... Na6 {[%clk 0:04:48.3]} 9. g4 {[%clk 0:04:37.8]} 9... Bxg4 {[%clk
0:04:37.9]} 10. Ng5 {[%clk 0:04:31.7]} 10... Bh6 {[%clk 0:04:23.8]} 11. h3
{[%clk 0:04:24.2]} 11... Bd7 {[%clk 0:04:13.7]} 12. Qe2 {[%clk 0:04:12.4]} 12...
f6 {[%clk 0:04:12.9]} 13. Nxh7 {[%clk 0:04:09.8]} 13... Kxh7 {[%clk 0:04:11.2]}
14. Qxh5 {[%clk 0:04:08.7]} 1-0

[Event "Live Chess"]
[Site "Chess.com"]
[Date "2023.05.20"]
[Round "-"]
[White "chessfiction"]
[Black "manthanit"]
[Result "1-0"]
[WhiteElo "2341"]
[BlackElo "1029"]
[TimeControl "300"]
[EndTime "15:20:15 PDT"]
[Termination "chessfiction won on time"]

1. e4 {[%clk 0:04:59.7]} 1... e6 {[%clk 0:04:58.6]} 2. d4 {[%clk 0:04:59.6]}
2... d5 {[%clk 0:04:57.8]} 3. Nc3 {[%clk 0:04:59.4]} 3... c5 {[%clk 0:04:55.8]}
4. Nf3 {[%clk 0:04:57.5]} 4... Nc6 {[%clk 0:04:50.9]} 5. exd5 {[%clk 0:04:54.6]}
5... exd5 {[%clk 0:04:49.6]} 6. Bb5 {[%clk 0:04:54.5]} 6... a6 {[%clk
0:04:48.6]} 7. Bxc6+ {[%clk 0:04:53.5]} 7... bxc6 {[%clk 0:04:47.9]} 8. O-O
{[%clk 0:04:52.6]} 8... Nf6 {[%clk 0:04:41.3]} 9. Re1+ {[%clk 0:04:52.5]} 9...
Be7 {[%clk 0:04:40.5]} 10. dxc5 {[%clk 0:04:51.8]} 10... O-O {[%clk 0:04:39]}
11. Nd4 {[%clk 0:04:51.1]} 11... Bxc5 {[%clk 0:04:29]} 12. Nxc6 {[%clk
0:04:49.4]} 12... Qb6 {[%clk 0:04:26.3]} 13. Ne7+ {[%clk 0:04:45.1]} 13... Kh8
{[%clk 0:04:21.6]} 14. Nexd5 {[%clk 0:04:44.2]} 14... Bxf2+ {[%clk 0:04:19.5]}
15. Kf1 {[%clk 0:04:41.7]} 15... Nxd5 {[%clk 0:04:02.7]} 16. Nxd5 {[%clk
0:04:41.6]} 16... Qc5 {[%clk 0:03:32.2]} 17. b4 {[%clk 0:04:34.2]} 17... Qd4
{[%clk 0:03:24.8]} 18. c3 {[%clk 0:04:24.2]} 18... Qa7 {[%clk 0:03:19.8]} 19.
Re7 {[%clk 0:04:21.9]} 19... Bd7 {[%clk 0:02:46.6]} 20. Rxd7 {[%clk 0:03:58.4]}
20... Qxd7 {[%clk 0:02:42.9]} 21. Kxf2 {[%clk 0:03:57.8]} 21... Qf5+ {[%clk
0:02:31.5]} 22. Qf3 {[%clk 0:03:55.2]} 22... Qc2+ {[%clk 0:02:24.5]} 23. Kg1
{[%clk 0:03:42.8]} 23... Rad8 {[%clk 0:02:19.3]} 24. Bh6 {[%clk 0:03:36.5]}
24... Qg6 {[%clk 0:01:41.7]} 25. Be3 {[%clk 0:03:14.5]} 25... Rfe8 {[%clk
0:01:31]} 26. Bd4 {[%clk 0:03:12.3]} 26... h6 {[%clk 0:01:24.3]} 27. Rf1 {[%clk
0:03:06.5]} 27... Rd7 {[%clk 0:01:01.1]} 28. c4 {[%clk 0:03:02.5]} 28... Re4
{[%clk 0:00:44.8]} 29. Rd1 {[%clk 0:02:37.7]} 29... Rd6 {[%clk 0:00:19.1]} 30.
Bc5 {[%clk 0:02:31]} 30... Rde6 {[%clk 0:00:17.9]} 31. Bf2 {[%clk 0:02:25.8]}
31... Qg5 {[%clk 0:00:10.7]} 32. h3 {[%clk 0:02:23.2]} 32... Rf4 {[%clk
0:00:08.3]} 33. Nxf4 {[%clk 0:02:21.4]} 33... Re1+ {[%clk 0:00:00.5]} 34. Rxe1
{[%clk 0:02:20.5]} 34... Qxg2+ {[%clk 0:00:00.1]} 35. Qxg2 {[%clk 0:02:19]} 1-0